bitfinex/quotes_BTCUSD_20250624
["timestamp","ask_amount","ask_price","bid_price","bid_amount"]
[1750755384161,0.03136988,105090.0,105080.0,0.11100186]
[1750755396625,0.03136988,105090.0,105080.0,0.09550186]
[1750755396862,0.04726988,105090.0,105080.0,0.09550186]
[1750755397364,0.03136988,105090.0,105080.0,0.09550186]
[1750755397785,0.03136988,105090.0,105070.0,0.0305]
[1750755398050,0.04676988,105090.0,105070.0,0.12600186]
[1750755398630,0.04476988,105090.0,105070.0,0.12600186]
[1750755399263,0.03876988,105090.0,105070.0,0.12600186]
[1750755399479,0.03676988,105090.0,105070.0,0.12600186]
[1750755400037,0.03876988,105090.0,105070.0,0.12600186]
[1750755401579,0.04076988,105090.0,105070.0,0.12600186]
[1750755401820,0.02536988,105090.0,105070.0,0.12600186]
[1750755402048,0.00446144,105090.0,105080.0,0.0161]
[1750755403013,0.00246144,105090.0,105080.0,0.0161]
[1750755403431,0.00446144,105090.0,105080.0,0.0161]
[1750755404099,0.0311814,105090.0,105080.0,0.0161]
[1750755404509,0.0331814,105090.0,105080.0,0.0161]
[1750755408615,0.0331814,105090.0,105080.0,0.12820186]
[1750755409444,0.017708,105090.0,105080.0,0.12820186]
[1750755409646,0.002,105090.0,105080.0,0.12820186]
[1750755410688,0.004,105090.0,105080.0,0.12820186]
[1750755411101,0.002,105090.0,105080.0,0.12820186]
[1750755411810,0.0157,105110.0,105090.0,0.0321]
[1750755412041,0.0157,105110.0,105090.0,0.12760186]
[1750755412042,0.07566085,105100.0,105090.0,0.12760186]
[1750755413893,0.07666085,105100.0,105090.0,0.12760186]
[1750755415744,0.07866085,105100.0,105090.0,0.12760186]
[1750755418884,0.003,105100.0,105090.0,0.12760186]
[1750755420505,0.001,105100.0,105090.0,0.12760186]
[1750755420880,0.24444852,105120.0,105090.0,0.12760186]
[1750755421077,0.24444852,105120.0,105090.0,0.11120186]
[1750755421078,0.031,105110.0,105090.0,0.11120186]
[1750755421240,0.001,105100.0,105090.0,0.11120186]
[1750755421764,0.031,105110.0,105090.0,0.11120186]
[1750755422740,0.031,105110.0,105090.0,0.12640186]
[1750755422946,0.031,105110.0,105090.0,0.12840186]
[1750755423761,0.0156,105110.0,105090.0,0.12840186]
[1750755425807,0.0156,105110.0,105090.0,0.13040186]
[1750755426162,0.0156,105110.0,105090.0,0.12840186]
[1750755426553,0.0163,105110.0,105090.0,0.12840186]
[1750755428592,0.0163,105110.0,105090.0,0.12640186]
[1750755431868,0.0318,105110.0,105090.0,0.12640186]
[1750755433165,0.07566085,105100.0,105090.0,0.09550186]
[1750755434441,0.07566085,105100.0,105090.0,0.09750186]
[1750755435067,0.0321,105110.0,105090.0,0.11400186]
[1750755435268,0.0166,105110.0,105090.0,0.13010186]
[1750755435469,0.26014852,105120.0,105090.0,0.13010186]
[1750755435683,0.27514852,105120.0,105090.0,0.13210186]
[1750755436022,0.27514852,105120.0,105100.0,0.0165]
[1750755436944,0.27714852,105120.0,105100.0,0.0165]
[1750755437165,0.27514852,105120.0,105100.0,0.0165]
[1750755437980,0.16878767,105120.0,105110.0,0.09550186]
[1750755438183,0.16878767,105120.0,105110.0,0.11110186]
[1750755438572,0.16878767,105120.0,105110.0,0.12750186]
[1750755440317,0.16978767,105120.0,105110.0,0.12750186]
[1750755440879,0.17178767,105120.0,105110.0,0.12750186]
[1750755441098,0.16978767,105120.0,105110.0,0.12750186]
[1750755442233,0.16878767,105120.0,105110.0,0.12750186]
[1750755442393,0.16878767,105120.0,105110.0,0.11110186]
[1750755443556,0.24444852,105120.0,105110.0,0.09550186]
[1750755444314,0.27584852,105120.0,105100.0,0.0153]
[1750755444521,0.27584852,105120.0,105100.0,0.09550186]
[1750755444733,0.0156,105110.0,105100.0,0.09550186]
[1750755446259,0.0318,105110.0,105100.0,0.09750186]
[1750755446463,0.0318,105110.0,105100.0,0.004]
[1750755459161,0.0156,105110.0,105100.0,0.004]
[1750755459374,0.27624852,105120.0,105100.0,0.004]
[1750755460737,0.26084852,105120.0,105100.0,0.004]
[1750755460947,0.0154,105110.0,105100.0,0.004]
[1750755461162,0.0154,105110.0,105100.0,0.002]
[1750755461496,0.0154,105110.0,105090.0,0.0153]
[1750755461735,0.0154,105110.0,105090.0,0.12710186]
[1750755462821,0.0154,105110.0,105090.0,0.12910186]
[1750755463518,0.0154,105110.0,105100.0,0.002]
[1750755463846,0.0154,105110.0,105090.0,0.12910186]
[1750755464129,0.0154,105110.0,105090.0,0.13110186]
[1750755464468,0.0154,105110.0,105090.0,0.11280186]
[1750755464669,0.0318,105110.0,105090.0,0.11080186]
[1750755464808,0.0318,105110.0,105100.0,0.002]
[1750755465418,0.0318,105110.0,105090.0,0.11080186]
[1750755465822,0.0318,105110.0,105090.0,0.11280186]
[1750755466446,0.0318,105110.0,105090.0,0.12890186]
[1750755467183,0.0154,105110.0,105090.0,0.12890186]
[1750755468021,0.0154,105110.0,105090.0,0.13090186]
[1750755470006,0.27594852,105120.0,105090.0,0.13090186]
[1750755470306,0.27594852,105120.0,105090.0,0.11560186]
[1750755470522,0.27594852,105120.0,105100.0,0.0158]
[1750755471792,0.26084852,105120.0,105100.0,0.0314]
[1750755472004,0.24444852,105120.0,105110.0,0.0313]
[1750755472469,0.16878767,105120.0,105110.0,0.12680186]
[1750755475892,0.37087961,105120.0,105110.0,0.12680186]
[1750755476539,0.37087961,105120.0,105110.0,0.12880186]
[1750755476961,0.37087961,105120.0,105110.0,0.13080186]
[1750755482257,0.19241136,105120.0,105110.0,0.93080186]
[1750755483179,0.19241136,105120.0,105110.0,0.92880186]
[1750755483623,0.19241136,105120.0,105110.0,0.92680186]
[1750755484074,0.19241136,105120.0,105110.0,0.93480186]
[1750755484305,0.19241136,105120.0,105110.0,0.92780186]
[1750755484531,0.19241136,105120.0,105110.0,0.93580186]
[1750755484746,0.19354303,105120.0,105110.0,0.94080186]
[1750755486674,0.19354303,105120.0,105110.0,0.24080186]
[1750755505427,0.17807709,105120.0,105110.0,0.24080186]
[1750755506539,0.17807709,105120.0,105110.0,0.25985186]
[1750755515294,0.16261145,105120.0,105110.0,0.25985186]
[1750755518587,0.16261145,105120.0,105110.0,0.24425186]
[1750755519832,0.2382723,105120.0,105110.0,0.22855186]
[1750755520040,0.2533723,105120.0,105110.0,0.20950186]
[1750755520341,0.2699723,105120.0,105110.0,0.20950186]
[1750755521027,0.2699723,105120.0,105110.0,0.20843249]
[1750755527799,0.2699723,105120.0,105110.0,0.22748249]
[1750755528647,0.2699723,105120.0,105110.0,0.20843249]
[1750755528854,0.2699723,105120.0,105110.0,0.10843249]
[1750755529044,0.2699723,105120.0,105110.0,0.20843249]
[1750755530609,0.19431145,105120.0,105110.0,0.20843249]
[1750755530868,0.17771145,105120.0,105110.0,0.20843249]
[1750755531519,0.19371145,105120.0,105110.0,0.20843249]
[1750755535736,0.17771145,105120.0,105110.0,0.20843249]
[1750755535958,0.16261145,105120.0,105110.0,0.20843249]
[1750755539179,0.17871145,105120.0,105110.0,0.20843249]
[1750755542239,0.16261145,105120.0,105110.0,0.20843249]
[1750755542468,0.16261145,105120.0,105110.0,0.22443249]
[1750755542685,0.16261145,105120.0,105110.0,0.24043249]
[1750755547985,0.14714483,105120.0,105110.0,0.24043249]
[1750755555912,0.14714483,105120.0,105110.0,0.25948249]
[1750755556956,0.17904483,105120.0,105110.0,0.22748249]
[1750755557170,0.23890568,105120.0,105110.0,0.22748249]
[1750755558352,0.22280568,105120.0,105110.0,0.22748249]
[1750755561363,0.22280568,105120.0,105110.0,0.24318249]
[1750755562901,0.20733845,105120.0,105110.0,0.24318249]
[1750755563219,0.20733845,105120.0,105110.0,0.25818249]
[1750755564059,0.20733845,105120.0,105110.0,0.24318249]
[1750755565100,0.1316776,105120.0,105110.0,0.24318249]
[1750755565515,0.1316776,105120.0,105110.0,0.22748249]
[1750755566539,0.22393845,105120.0,105110.0,0.22748249]
[1750755566743,0.23903845,105120.0,105110.0,0.22748249]
[1750755567453,0.1482776,105120.0,105110.0,0.22748249]
[1750755570144,0.1316776,105120.0,105110.0,0.22748249]
[1750755572972,0.11621019,105120.0,105110.0,0.22748249]
[1750755578707,0.11621019,105120.0,105110.0,0.24378249]
[1750755583087,0.10074278,105120.0,105110.0,0.24378249]
[1750755583280,0.10074278,105120.0,105110.0,0.22748249]
[1750755585524,0.10074278,105120.0,105110.0,0.20843249]
[1750755585913,0.10074278,105120.0,105110.0,0.22503249]
[1750755590702,0.10074278,105120.0,105110.0,0.24093249]
[1750755593000,0.08527625,105120.0,105110.0,0.24093249]
[1750755599491,0.08527625,105120.0,105110.0,0.94093249]
[1750755600609,0.08527625,105120.0,105110.0,0.24093249]
[1750755600817,0.1609371,105120.0,105110.0,0.24093249]
[1750755601202,0.1609371,105120.0,105110.0,0.23593249]
[1750755602938,0.14547103,105120.0,105110.0,0.23593249]
[1750755604793,0.06981018,105120.0,105110.0,0.23593249]
[1750755613017,0.054344,105120.0,105110.0,0.22003249]
[1750755613844,0.054344,105120.0,105110.0,0.23583249]
[1750755614478,0.053844,105120.0,105110.0,0.23583249]
[1750755614758,0.053844,105120.0,105110.0,0.22003249]
[1750755614995,0.053844,105120.0,105110.0,0.20343249]
[1750755616860,0.12950485,105120.0,105110.0,0.20343249]
[1750755617024,0.16200485,105120.0,105110.0,0.22248249]
[1750755620851,0.053844,105120.0,105110.0,0.22248249]
[1750755621071,0.053844,105120.0,105110.0,0.23888249]
[1750755621500,0.053844,105120.0,105110.0,0.25438249]
[1750755623084,0.03837782,105120.0,105110.0,0.25438249]
[1750755625760,0.03837782,105120.0,105110.0,0.23533249]
[1750755630328,0.03837782,105120.0,105110.0,0.21983249]
[1750755630542,0.11403867,105120.0,105110.0,0.21983249]
[1750755630779,0.11403867,105120.0,105110.0,0.20343249]
[1750755630997,0.12983867,105120.0,105110.0,0.20343249]
[1750755633080,0.11437262,105120.0,105110.0,0.20343249]
[1750755634145,0.13077262,105120.0,105110.0,0.20343249]
[1750755640964,0.13077262,105120.0,105110.0,0.20343249]
[1750755643189,0.05511177,105120.0,105110.0,0.20343249]
[1750755644458,0.13077262,105120.0,105110.0,0.20343249]
[1750755645712,0.13077262,105120.0,105110.0,0.22248249]
[1750755647536,0.05511177,105120.0,105110.0,0.22248249]
[1750755648584,0.03871177,105120.0,105110.0,0.22248249]
[1750755648782,0.05461177,105120.0,105110.0,0.22248249]
[1750755650032,0.03871177,105120.0,105110.0,0.22248249]
[1750755650735,0.02291177,105120.0,105110.0,0.22248249]
[1750755652883,0.02291177,105120.0,105110.0,0.25368249]
[1750755653519,0.00744552,105120.0,105110.0,0.25368249]
[1750755655946,0.00744552,105120.0,105110.0,0.23463249]
[1750755661023,0.08310637,105120.0,105110.0,0.23463249]
[1750755661339,0.08310637,105120.0,105110.0,0.20963249]
[1750755663551,0.0676404,105120.0,105110.0,0.20963249]
[1750755666658,0.0676404,105120.0,105110.0,0.22868249]
[1750755671700,0.06760039,105120.0,105110.0,0.22868249]
[1750755672551,0.90847806,105130.0,105110.0,0.22868249]
[1750755672808,0.90852418,105130.0,105120.0,0.1]
[1750755672997,0.90852418,105130.0,105120.0,0.19550186]
[1750755673248,0.90852418,105130.0,105120.0,0.21070186]
[1750755673474,0.90852418,105130.0,105120.0,0.22580186]
[1750755673905,0.90009612,105130.0,105120.0,0.22580186]
[1750755674757,0.90009612,105130.0,105120.0,0.22980186]
[1750755675635,0.90009612,105130.0,105120.0,0.23680186]
[1750755687867,0.88463158,105130.0,105120.0,0.23680186]
[1750755690142,0.87295246,105130.0,105120.0,0.23680186]
[1750755690361,0.84309162,105130.0,105120.0,0.23680186]
[1750755690800,0.80720736,105130.0,105120.0,0.23680186]
[1750755691017,0.80720736,105130.0,105120.0,0.93680186]
[1750755691241,0.79091963,105130.0,105120.0,0.93680186]
[1750755691689,0.79091963,105130.0,105120.0,0.92980186]
[1750755692145,0.79091963,105130.0,105120.0,0.93580186]
[1750755692377,0.79091963,105130.0,105120.0,0.93180186]
[1750755692830,0.79091963,105130.0,105120.0,0.92780186]
[1750755693268,0.79091963,105130.0,105120.0,0.93380186]
[1750755693673,0.79091963,105130.0,105120.0,0.93880186]
[1750755700506,0.79091963,105130.0,105120.0,0.90850186]
[1750755700730,0.82191963,105130.0,105120.0,0.92755186]
[1750755701372,0.82191963,105130.0,105120.0,0.90850186]
[1750755701601,0.82191963,105130.0,105120.0,0.20850186]
[1750755702317,0.82191963,105130.0,105120.0,0.20350186]
[1750755702526,0.82191963,105130.0,105120.0,0.19550186]
[1750755702743,0.82191963,105130.0,105120.0,0.20050186]
[1750755709722,0.82191963,105130.0,105120.0,0.09885]
[1750755709937,0.82191963,105130.0,105120.0,0.05741056]
[1750755710160,0.82191963,105130.0,105120.0,0.005]
[1750755712105,0.82191963,105130.0,105120.0,0.003]
[1750755712529,0.82391963,105130.0,105080.0,0.0303]
[1750755712747,0.0151,105110.0,105090.0,0.22700186]
[1750755714570,0.0151,105110.0,105090.0,0.22800186]
[1750755714763,0.0151,105110.0,105090.0,0.21210186]
[1750755714976,0.0316,105110.0,105090.0,0.21210186]
[1750755715638,0.0316,105110.0,105090.0,0.22720186]
[1750755715845,0.0316,105110.0,105090.0,0.21310186]
[1750755720439,0.0316,105110.0,105090.0,0.19750186]
[1750755721052,0.0161,105100.0,105090.0,0.19750186]
[1750755721282,0.0326,105100.0,105090.0,0.19750186]
[1750755721913,0.0161,105100.0,105090.0,0.19750186]
[1750755722080,0.0318,105110.0,105090.0,0.19750186]
[1750755722290,0.0153,105110.0,105090.0,0.22870186]
[1750755722457,0.0316,105110.0,105090.0,0.19750186]
[1750755722662,0.0316,105110.0,105090.0,0.19650186]
[1750755722959,0.0316,105110.0,105090.0,0.19850186]
[1750755723219,0.0316,105110.0,105090.0,0.19750186]
[1750755723427,0.0316,105110.0,105090.0,0.19550186]
[1750755723637,0.0316,105110.0,105090.0,0.19850186]
[1750755723901,0.0316,105110.0,105090.0,0.21110186]
[1750755724144,0.0316,105110.0,105090.0,0.21210186]
[1750755724428,0.0316,105110.0,105090.0,0.21310186]
[1750755728243,0.0163,105110.0,105090.0,0.19750186]
[1750755728457,0.0318,105100.0,105090.0,0.19750186]
[1750755729071,0.0156,105100.0,105090.0,0.19750186]
[1750755729476,0.0163,105110.0,105090.0,0.19550186]
[1750755729680,0.0326,105110.0,105090.0,0.19550186]
[1750755729817,0.0326,105110.0,105090.0,0.20050186]
[1750755730309,0.0326,105110.0,105090.0,0.19850186]
[1750755730723,0.0326,105110.0,105090.0,0.19950186]
[1750755731444,0.0326,105110.0,105090.0,0.21450186]
[1750755732099,0.0326,105110.0,105090.0,0.21150186]
[1750755732554,0.0326,105110.0,105090.0,0.21250186]
[1750755733211,0.0326,105110.0,105090.0,0.19750186]
[1750755733811,0.0415434,105110.0,105090.0,0.19750186]
[1750755735241,0.0415434,105110.0,105090.0,0.21370186]
[1750755744153,0.0089434,105110.0,105090.0,0.21370186]
[1750755744418,0.0089434,105110.0,105100.0,0.0156]
[1750755744611,0.05957625,105120.0,105100.0,0.11110186]
[1750755744840,0.05957625,105120.0,105110.0,0.09550186]
[1750755746378,0.06852396,105120.0,105110.0,0.09550186]
[1750755747090,0.05322396,105120.0,105110.0,0.09550186]
[1750755747301,0.03892396,105120.0,105110.0,0.09550186]
[1750755747435,0.00994771,105120.0,105110.0,0.11200186]
[1750755747652,0.00994771,105120.0,105110.0,0.12700186]
[1750755749292,0.00994771,105120.0,105110.0,0.11200186]
[1750755749916,0.40082122,105120.0,105110.0,0.11200186]
[1750755750121,0.40082122,105120.0,105110.0,0.11300186]
[1750755751105,0.39982122,105120.0,105110.0,0.11300186]
[1750755751317,0.39982122,105120.0,105110.0,0.11400186]
[1750755753595,0.45962249,105120.0,105110.0,0.09750186]
[1750755757396,0.45962249,105120.0,105110.0,0.002]
[1750755763931,0.06874898,105120.0,105110.0,0.002]
[1750755775807,0.03804898,105120.0,105110.0,0.11350186]
[1750755776268,0.82789211,105130.0,105110.0,0.11350186]
[1750755776699,0.83708001,105130.0,105110.0,0.11350186]
[1750755777335,0.83708001,105130.0,105110.0,0.11250186]
[1750755777648,0.83808001,105130.0,105110.0,0.11250186]
[1750755778171,0.83808001,105130.0,105110.0,0.11150186]
[1750755781949,0.80608001,105130.0,105120.0,0.0164]
[1750755782155,0.80110753,105130.0,105120.0,0.0164]
[1750755782368,0.80110753,105130.0,105120.0,0.12800186]
[1750755784204,0.80010753,105130.0,105120.0,0.12800186]
[1750755784377,0.80110753,105130.0,105120.0,0.12800186]
[1750755792368,0.80110753,105130.0,105120.0,0.22800186]
[1750755792610,0.79191963,105130.0,105120.0,0.22800186]
[1750755793842,0.79091963,105130.0,105120.0,0.22800186]
[1750755794278,0.79191963,105130.0,105120.0,0.23000186]
[1750755794491,0.79091963,105130.0,105120.0,0.23000186]
[1750755794711,0.79091963,105130.0,105120.0,0.23300186]
[1750755805898,0.79091963,105130.0,105120.0,0.25205186]
[1750755806106,0.79091963,105130.0,105120.0,0.23300186]
[1750755816124,0.79091963,105130.0,105120.0,0.25205186]
[1750755816338,0.79091963,105130.0,105120.0,0.23300186]
[1750755819631,0.79091963,105130.0,105120.0,0.93300186]
[1750755820990,0.7754567,105130.0,105120.0,0.93300186]
[1750755822677,0.7754567,105130.0,105120.0,0.23300186]
[1750755824150,0.7754567,105130.0,105120.0,0.93300186]
[1750755824828,0.76430578,105130.0,105120.0,0.93300186]
[1750755825042,0.75555867,105130.0,105120.0,0.93300186]
[1750755825498,0.72249529,105130.0,105120.0,0.93300186]
[1750755826149,0.72249529,105130.0,105120.0,0.93000186]
[1750755826363,0.72249529,105130.0,105120.0,0.95705186]
[1750755826891,0.69203121,105130.0,105120.0,0.95505186]
[1750755827364,0.69203121,105130.0,105120.0,0.95905186]
[1750755827577,0.69199121,105130.0,105120.0,0.95905186]
[1750755835525,0.68084101,105130.0,105120.0,0.95905186]
[1750755838614,0.65919526,105130.0,105120.0,0.95905186]
[1750755844876,0.65919526,105130.0,105120.0,0.94295186]
[1750755845953,0.65919526,105130.0,105120.0,0.92390186]
[1750755850751,0.63754847,105130.0,105120.0,0.93940186]
[1750755851159,0.62613077,105130.0,105120.0,0.93940186]
[1750755856113,0.62613077,105130.0,105120.0,0.95845186]
[1750755858935,0.60448525,105130.0,105120.0,0.95845186]
[1750755860347,0.60448525,105130.0,105120.0,0.92655186]
[1750755860775,0.60448525,105130.0,105120.0,0.90750186]
[1750755863523,0.60448525,105130.0,105120.0,0.92350186]
[1750755866314,0.60448525,105130.0,105120.0,0.90750186]
[1750755866528,0.62108525,105130.0,105120.0,0.90750186]
[1750755866659,0.63608525,105130.0,105120.0,0.90750186]
[1750755867329,0.62108525,105130.0,105120.0,0.90750186]
[1750755868058,0.62108525,105130.0,105120.0,0.20750186]
[1750755870756,0.62108525,105130.0,105120.0,0.22655186]
[1750755873207,0.63658525,105130.0,105120.0,0.22655186]
[1750755874314,0.63658525,105130.0,105120.0,0.13105]
[1750755875275,0.63658525,105130.0,105120.0,0.22655186]
[1750755877570,0.62108525,105130.0,105120.0,0.22655186]
[1750755877780,0.60448525,105130.0,105120.0,0.22655186]
[1750755879433,0.60448525,105130.0,105120.0,0.24215186]
[1750755879825,0.60448525,105130.0,105120.0,0.25755186]
[1750755881005,0.60448525,105130.0,105120.0,0.95755186]
[1750755884033,0.60448525,105130.0,105120.0,0.94215186]
[1750755885767,0.61998525,105130.0,105120.0,0.22655186]
[1750755892865,0.60448525,105130.0,105120.0,0.22655186]
[1750755894833,0.60448525,105130.0,105120.0,0.24185186]
[1750755896686,0.60448525,105130.0,105120.0,0.25735186]
[1750755901048,0.60448525,105130.0,105120.0,0.95735186]
[1750755902992,0.58283919,105130.0,105120.0,0.95735186]
[1750755904741,0.5527519,105130.0,105120.0,0.95735186]
[1750755905406,0.52922518,105130.0,105120.0,0.95735186]
[1750755905837,0.52922518,105130.0,105120.0,0.93830186]
[1750755915814,0.52922518,105130.0,105120.0,0.92280186]
[1750755920284,0.52922518,105130.0,105120.0,0.93800186]
[1750755923020,0.52922518,105130.0,105120.0,0.23800186]
[1750755924148,0.50758006,105130.0,105120.0,0.23800186]
[1750755925827,0.52398006,105130.0,105120.0,0.22654186]
[1750755926043,0.54048006,105130.0,105120.0,0.92654186]
[1750755928047,0.54048006,105130.0,105120.0,0.22654186]
[1750755928439,0.54048006,105130.0,105120.0,0.21854186]
[1750755928815,0.55148006,105130.0,105120.0,0.21954186]
[1750755929067,0.53498006,105130.0,105120.0,0.21954186]
[1750755933446,0.51858006,105130.0,105120.0,0.21954186]
[1750755936677,0.53378006,105130.0,105120.0,0.21954186]
[1750755937758,0.51858006,105130.0,105120.0,0.21954186]
[1750755945370,0.51858006,105130.0,105120.0,0.25034186]
[1750755947356,0.51858006,105130.0,105120.0,0.23484186]
[1750755947577,0.51858006,105130.0,105120.0,0.93484186]
[1750755952972,0.51858006,105130.0,105120.0,0.91954186]
[1750755955802,0.53448006,105130.0,105120.0,0.91954186]
[1750755958759,0.51858006,105130.0,105120.0,0.91954186]
[1750755961285,0.51858006,105130.0,105120.0,0.21954186]
[1750755964340,0.51858006,105130.0,105120.0,0.91954186]
[1750755966108,0.53478006,105130.0,105120.0,0.91954186]
[1750755966927,0.53478006,105130.0,105120.0,0.21954186]
[1750755967898,0.51858006,105130.0,105120.0,0.21954186]
[1750755968597,0.51858006,105130.0,105120.0,0.23454186]
[1750755969756,0.51858006,105130.0,105120.0,0.93454186]
[1750755971186,0.51858006,105130.0,105120.0,0.94964186]
[1750755973427,0.51858006,105130.0,105120.0,0.93454186]
[1750755973769,0.51858006,105130.0,105120.0,0.91954186]
[1750755974935,0.51858006,105130.0,105120.0,0.93614186]
[1750755975068,0.51858006,105130.0,105120.0,0.91954186]
[1750755975462,0.51858006,105130.0,105120.0,0.93504186]
[1750755976290,0.51858006,105130.0,105120.0,0.95004186]
[1750755976805,0.51858006,105130.0,105120.0,0.25004186]
[1750755979795,0.51858006,105130.0,105120.0,0.95004186]
[1750755983053,0.50716305,105130.0,105120.0,0.95004186]
[1750755984504,0.49600294,105130.0,105120.0,0.95004186]
[1750755984704,0.47881034,105130.0,105120.0,0.95004186]
[1750755985724,0.47881034,105130.0,105120.0,0.93100186]
[1750755985864,0.47881034,105130.0,105120.0,1.22260186]
[1750755986060,0.46614211,105130.0,105120.0,1.22260186]
[1750755986274,0.45407712,105130.0,105120.0,1.22260186]
[1750755991788,0.45407712,105130.0,105120.0,0.93100186]
[1750755992945,0.44266067,105130.0,105120.0,0.93100186]
[1750755994103,0.42101697,105130.0,105120.0,0.93100186]
[1750755995777,0.42101697,105130.0,105120.0,0.95004186]
[1750756003593,0.41196824,105130.0,105120.0,0.95004186]
[1750756003797,0.38180578,105130.0,105120.0,0.95004186]
[1750756004316,0.38180578,105130.0,105120.0,0.94604186]
[1750756004562,0.37580578,105130.0,105120.0,0.94504186]
[1750756004991,0.38680578,105130.0,105120.0,0.94804186]
[1750756005213,0.38180578,105130.0,105120.0,0.94804186]
[1750756005672,0.37275704,105130.0,105120.0,1.23964186]
[1750756005908,0.20572942,105130.0,105120.0,1.23964186]
[1750756006752,0.20672942,105130.0,105120.0,1.24164186]
[1750756007265,0.0001,105140.0,105130.0,0.0162]
[1750756007490,0.0001,105140.0,105130.0,0.94604186]
[1750756008760,0.0111,105140.0,105130.0,0.94804186]
[1750756008950,0.00015,105150.0,105130.0,0.94604186]
[1750756009200,0.00019612,105150.0,105140.0,0.14634186]
[1750756009409,0.00019612,105150.0,105140.0,1.23794186]
[1750756011017,0.00019612,105150.0,105140.0,1.23994186]
[1750756011240,0.00019612,105150.0,105140.0,1.24194186]
[1750756013704,0.00010857,105150.0,105140.0,1.24194186]
[1750756018687,0.00010857,105150.0,105140.0,1.34214186]
[1750756018803,0.00010857,105150.0,105140.0,1.24194186]
[1750756025111,0.00015,105250.0,105170.0,0.05174]
[1750756025334,0.00015,105250.0,105200.0,0.25194]
[1750756025559,5e-05,105270.0,105230.0,0.05114]
[1750756025780,5e-05,105270.0,105240.0,0.0321]
[1750756026004,8.782e-05,105270.0,105250.0,0.0321]
[1750756026238,0.07571085,105300.0,105260.0,0.0311]
[1750756026457,0.07571085,105300.0,105290.0,0.09550186]
[1750756026670,0.06628952,105300.0,105290.0,0.19550186]
[1750756026889,0.03300794,105300.0,105290.0,0.23180331]
[1750756027102,0.02349892,105300.0,105290.0,0.19550186]
[1750756027308,0.02349892,105300.0,105290.0,0.21050186]
[1750756027538,0.0139899,105300.0,105290.0,0.21050186]
[1750756027746,0.00207,105310.0,105290.0,0.21050186]
[1750756027961,0.09309422,105330.0,105300.0,0.09550186]
[1750756028178,0.30434162,105310.0,105290.0,0.003]
[1750756028471,0.30434162,105310.0,105300.0,0.09550186]
[1750756028749,0.30434162,105310.0,105300.0,0.19550186]
[1750756029265,0.30434162,105310.0,105300.0,0.89550186]
[1750756029776,0.29484487,105310.0,105300.0,0.89550186]
[1750756030018,0.28534812,105310.0,105300.0,0.89550186]
[1750756030225,0.09318189,105330.0,105300.0,0.89550186]
[1750756030448,0.09318189,105330.0,105320.0,0.19550186]
[1750756030663,0.01752104,105330.0,105320.0,0.19550186]
[1750756032802,0.01752104,105330.0,105320.0,0.19650186]
[1750756033219,0.03252104,105330.0,105320.0,0.19650186]
[1750756033678,0.04852104,105330.0,105320.0,0.19650186]
[1750756034090,0.04852104,105330.0,105320.0,0.19550186]
[1750756034303,0.04843358,105330.0,105320.0,0.19650186]
[1750756035925,0.03893509,105330.0,105320.0,0.19550186]
[1750756036344,0.0294366,105330.0,105320.0,0.19650186]
[1750756036770,0.01993811,105330.0,105320.0,0.19650186]
[1750756036969,0.0759698,105340.0,105320.0,0.19650186]
[1750756037901,5e-05,105350.0,105320.0,0.19550186]
[1750756039081,5e-05,105350.0,105320.0,0.22458434]
[1750756040152,0.0294,105340.0,105320.0,0.22458434]
[1750756041785,0.0294,105340.0,105320.0,0.19550186]
[1750756041994,0.0294,105330.0,105320.0,0.19550186]
[1750756042214,0.0158,105330.0,105320.0,0.19550186]
[1750756044865,0.0155,105340.0,105320.0,0.19550186]
[1750756045819,5e-05,105350.0,105330.0,0.09550186]
[1750756047401,5e-05,105350.0,105340.0,0.09550186]
[1750756048031,5e-05,105350.0,105340.0,0.19550186]
[1750756050335,5e-05,105350.0,105340.0,0.19650186]
[1750756051104,5e-05,105350.0,105340.0,0.21250186]
[1750756051317,5e-05,105350.0,105340.0,0.22750186]
[1750756051752,5e-05,105350.0,105340.0,0.21250186]
[1750756052201,5e-05,105350.0,105340.0,0.22770186]
[1750756052809,5e-05,105350.0,105340.0,0.22970186]
[1750756053013,5e-05,105350.0,105340.0,0.22770186]
[1750756053225,5e-05,105350.0,105340.0,0.22670186]
[1750756053427,5e-05,105350.0,105340.0,0.22770186]
[1750756053983,5e-05,105350.0,105340.0,0.22670186]
[1750756054362,5e-05,105350.0,105340.0,0.22870186]
[1750756056555,5e-05,105350.0,105340.0,0.52870186]
[1750756060485,5e-05,105350.0,105340.0,1.24674186]
[1750756060697,5e-05,105350.0,105340.0,1.24974186]
[1750756061137,5e-05,105350.0,105340.0,1.24874186]
[1750756061381,5e-05,105350.0,105340.0,1.25074186]
[1750756062817,5e-05,105350.0,105340.0,1.26011487]
[1750756066695,5e-05,105350.0,105340.0,1.25811487]
[1750756067115,6e-05,105360.0,105340.0,1.22891487]
[1750756067338,6e-05,105360.0,105350.0,0.14554186]
[1750756067557,6e-05,105360.0,105350.0,0.94554186]
[1750756069580,6e-05,105360.0,105350.0,0.91454186]
[1750756070004,6e-05,105360.0,105350.0,0.89750186]
[1750756070231,0.02946,105360.0,105350.0,0.79750186]
[1750756070450,0.02946,105360.0,105350.0,0.09550186]
[1750756070670,0.03046,105360.0,105290.0,0.015]
[1750756070889,0.03046,105360.0,105330.0,0.1]
[1750756070890,0.0158,105340.0,105330.0,0.1]
[1750756072879,0.0294,105340.0,105330.0,0.1]
[1750756073142,0.00252085,105360.0,105280.0,0.0002]
[1750756073358,0.0759698,105330.0,105290.0,0.00877659]
[1750756073603,0.70631399,105330.0,105300.0,0.00857888]
[1750756073823,0.20631399,105330.0,105290.0,0.00871192]
[1750756074046,0.17147166,105330.0,105290.0,0.00871192]
[1750756074490,0.002,105340.0,105300.0,0.09550186]
[1750756074711,0.10638705,105360.0,105300.0,0.09550186]
[1750756074926,0.004,105330.0,105300.0,0.09650186]
[1750756075140,0.09550186,105350.0,105300.0,0.09550186]
[1750756075354,5.413038,105340.0,105300.0,0.09550186]
[1750756075560,0.004,105330.0,105300.0,0.09550186]
[1750756075988,0.004,105330.0,105300.0,0.12580186]
[1750756076207,0.004,105330.0,105300.0,0.12780186]
[1750756076910,0.60638705,105360.0,105300.0,0.12580186]
[1750756077111,0.001,105330.0,105300.0,0.13080186]
[1750756077329,0.001,105330.0,105300.0,0.12880186]
[1750756077533,0.26253262,105360.0,105300.0,0.12880186]
[1750756077534,0.20188891,105360.0,105300.0,0.12580186]
[1750756077955,0.001,105330.0,105310.0,0.1]
[1750756078166,0.002,105330.0,105320.0,0.09550186]
[1750756078604,0.001,105330.0,105320.0,0.09550186]
[1750756079231,0.001,105330.0,105320.0,0.12720186]
[1750756079480,0.00152085,105360.0,105320.0,0.12720186]
[1750756079903,0.00152085,105360.0,105320.0,0.09550186]
[1750756080536,0.00152085,105360.0,105320.0,0.11090186]